bitfinex-derivatives/quotes_ETHF0:USTF0_20250917
["timestamp","ask_amount","ask_price","bid_price","bid_amount"]
[1758122603317,0.728,4488.6,4488.5,0.8322]
[1758122609717,0.4232,4488.2,4488.1,0.711]
[1758122609920,0.728,4488.2,4488.1,0.711]
[1758122611827,3.3266,4489.0,4488.9,0.711]
[1758122611828,3.9358,4489.0,4488.9,0.711]
[1758122612020,4.49111893,4489.0,4488.9,0.711]
[1758122612215,4.60991893,4489.0,4488.5,0.3041]
[1758122612415,0.212,4488.2,4488.1,0.711]
[1758122612623,0.728,4488.2,4488.1,0.711]
[1758122615621,3.3266,4489.0,4488.1,0.711]
[1758122615923,0.55544031,4488.9,4488.8,0.711]
[1758122616119,3.2078,4489.0,4488.9,0.3041]
[1758122616425,3.2078,4489.0,4488.9,0.711]
[1758122616624,0.5168,4489.4,4489.3,0.711]
[1758122617214,3.2078,4489.5,4489.3,0.711]
[1758122617413,3.2078,4489.5,4489.4,0.7017]
[1758122617620,0.7088,4490.1,4490.0,0.5062]
[1758122617920,1.26412027,4490.1,4490.0,0.7017]
[1758122618818,0.2085,4489.7,4489.6,0.2084]
[1758122619025,0.2085,4489.7,4489.6,0.7017]
[1758122620621,0.7088,4489.7,4489.6,0.7017]
[1758122623626,0.7088,4489.7,4489.6,0.5062]
[1758122623825,0.7088,4489.7,4489.2,3.2078]
[1758122623826,0.7088,4489.3,4489.2,3.2078]
[1758122624226,0.7088,4489.3,4489.2,3.714]
[1758122624426,0.2085,4488.8,4488.7,0.5228]
[1758122624630,0.7088,4488.8,4488.7,0.7017]
[1758122624926,3.513,4489.2,4488.8,0.2978]
[1758122625133,0.2085,4489.1,4489.0,0.8305]
[1758122626835,3.9166,4489.8,4489.7,0.7017]
[1758122627132,4.69428708,4489.8,4489.1,0.2978]
[1758122627429,0.4036,4488.8,4488.6,0.225]
[1758122627731,0.8256,4488.5,4488.4,0.1782]
[1758122627930,3.2078,4488.8,4488.4,0.5821]
[1758122628237,3.9166,4488.8,4488.7,0.7017]
[1758122628534,3.9166,4488.8,4488.7,0.5062]
[1758122629134,0.3052,4488.7,4488.4,0.1782]
[1758122629334,0.7088,4488.5,4488.4,0.5821]
[1758122629837,0.7088,4488.5,4488.4,0.8799]
[1758122630136,0.8256,4488.5,4488.4,0.3866]
[1758122630336,0.8256,4488.5,4488.4,0.1782]
[1758122631234,0.5204,4488.5,4487.8,0.5228]
[1758122631435,0.2085,4487.9,4487.8,0.7017]
[1758122633442,0.3052,4488.4,4487.8,0.7017]
[1758122633638,0.2085,4488.4,4488.3,0.4039]
[1758122633840,3.4328,4488.9,4488.3,0.4039]
[1758122634037,0.5137,4488.7,4488.6,0.4039]
[1758122634238,0.7088,4488.7,4488.6,0.7017]
[1758122637635,0.7187,4488.7,4488.6,0.7017]
[1758122639042,0.2085,4488.7,4488.6,0.7017]
[1758122639244,0.3151,4489.0,4488.6,0.7017]
[1758122639545,0.7265,4488.8,4488.7,0.7335]
[1758122640848,0.225,4489.2,4488.4,0.2004]
[1758122640849,0.8468,4488.5,4488.4,0.2004]
[1758122641340,0.8468,4488.5,4488.4,0.0222]
[1758122641740,0.8468,4488.5,4487.8,0.3127]
[1758122644847,0.8468,4488.5,4487.9,0.0222]
[1758122645645,0.8468,4488.5,4488.0,0.1782]
[1758122645840,0.1203,4488.5,4488.0,0.4909]
[1758122646040,0.7265,4488.1,4488.0,0.697]
[1758122646242,0.7265,4488.1,4488.0,0.1782]
[1758122649246,0.7265,4488.1,4487.9,0.0222]
[1758122649448,0.4114,4488.1,4488.0,0.8435]
[1758122650051,0.7233,4488.1,4488.0,0.8435]
[1758122650351,0.7233,4488.1,4488.0,0.5093]
[1758122650647,0.8576,4488.0,4487.9,0.0222]
[1758122653254,0.8576,4488.0,4487.9,0.2282]
[1758122653451,0.8576,4488.0,4487.9,0.5093]
[1758122654552,0.958,4488.0,4487.9,0.7163]
[1758122654753,0.733,4488.0,4487.9,0.7163]
[1758122654951,0.2131,4488.0,4487.9,0.7163]
[1758122656559,0.733,4488.0,4487.9,0.7163]
[1758122656759,1.28887547,4488.0,4487.9,0.7163]
[1758122658857,1.28887547,4488.0,4487.7,0.2004]
[1758122658858,1.41347547,4488.0,4487.7,0.5037]
[1758122659061,0.733,4487.8,4487.7,0.2004]
[1758122659659,0.733,4487.8,4487.7,0.0222]
[1758122660256,0.3119,4487.7,4487.3,0.3033]
[1758122660460,0.733,4487.4,4487.3,0.7163]
[1758122663254,0.4211,4487.1,4487.0,0.5093]
[1758122663453,0.733,4487.1,4487.0,0.5093]
[1758122663858,0.3119,4487.8,4487.1,0.3033]
[1758122664065,1.28906289,4487.7,4487.6,0.5093]
[1758122665264,0.733,4487.7,4487.6,0.7163]
[1758122667168,1.28911615,4487.7,4487.6,0.7163]
[1758122667458,1.28911615,4487.7,4487.6,0.206]
[1758122667663,1.28911615,4487.7,4487.1,0.3033]
[1758122667862,0.4211,4487.2,4487.1,0.5093]
[1758122668063,0.733,4487.2,4487.1,0.5093]
[1758122668462,0.733,4487.2,4487.1,0.206]
[1758122668962,0.733,4487.2,4487.1,0.5093]
[1758122670761,0.733,4487.2,4487.1,0.206]
[1758122671068,0.733,4487.2,4486.9,0.3255]
[1758122672069,0.733,4487.2,4486.9,0.0222]
[1758122672270,0.733,4487.2,4487.0,0.3033]
[1758122674073,3.2078,4487.4,4487.2,0.3033]
[1758122674476,3.7328,4487.4,4487.3,0.413]
[1758122674768,4.49636099,4487.4,4487.3,0.7163]
[1758122674974,4.18446099,4487.4,4487.3,0.7163]
[1758122675274,0.225,4487.7,4487.3,0.413]
[1758122675572,0.525,4488.0,4487.9,0.413]
[1758122675769,0.97648053,4488.0,4487.9,0.7163]
[1758122676075,0.2131,4488.0,4487.9,0.7163]
[1758122676969,3.2078,4488.1,4488.0,0.1269]
[1758122677275,3.2078,4488.1,4488.0,0.8385]
[1758122678971,0.3151,4488.6,4488.0,0.8385]
[1758122679171,1.41675133,4488.5,4488.2,0.3051]
[1758122679373,0.2077,4487.8,4487.7,3.6143]
[1758122679770,0.7365,4487.8,4487.7,3.6143]
[1758122679978,0.7365,4487.8,4487.7,0.7116]
[1758122680172,0.3151,4487.7,4487.3,0.3051]
[1758122680375,0.7365,4487.7,4487.6,0.7116]
[1758122681575,0.4214,4487.3,4487.2,3.8393]
[1758122681772,3.2078,4487.8,4487.2,3.9194]
[1758122681978,3.4155,4487.8,4487.7,0.7116]
[1758122682978,0.2077,4487.8,4487.7,0.7116]
[1758122684676,0.7365,4487.8,4487.7,0.7116]
[1758122686383,0.4214,4487.8,4487.7,0.7116]
[1758122687080,0.7365,4487.8,4487.7,0.7116]
[1758122687380,0.7365,4487.8,4487.7,0.3051]
[1758122687582,0.7365,4487.8,4487.7,0.5169]
[1758122688080,0.7365,4487.8,4487.7,0.7116]
[1758122694279,0.5228,4488.1,4488.0,0.5334]
[1758122694582,1.07797173,4488.1,4488.0,0.8385]
[1758122695085,1.29167173,4488.1,4488.0,0.8385]
[1758122695584,0.55517173,4488.1,4488.0,0.8385]
[1758122696085,0.76287173,4488.1,4488.0,0.8385]
[1758122696285,0.5228,4488.1,4488.0,0.8385]
[1758122697284,0.2077,4488.1,4488.0,0.8385]
[1758122697488,3.2078,4488.3,4488.1,0.3051]
[1758122697794,3.4194,4488.3,4488.2,0.7048]
[1758122698087,4.28608162,4488.3,4488.2,0.7048]
[1758122698287,1.07828162,4488.3,4488.2,0.7048]
[1758122698493,0.523,4488.3,4488.2,0.7048]
[1758122698884,0.7342,4488.3,4488.2,0.7048]
[1758122699377,1.28946562,4488.3,4488.2,0.7048]
[1758122699885,1.28946562,4488.3,4488.0,0.1782]
[1758122700090,0.4228,4488.1,4488.0,0.1782]
[1758122700283,1.28946059,4488.1,4488.0,0.1782]
[1758122700780,1.28946059,4488.1,4488.0,0.4708]
[1758122701189,1.28946059,4488.1,4488.0,0.2926]
[1758122701394,1.28946059,4488.1,4488.0,0.5058]
[1758122701888,1.28946059,4488.1,4488.0,0.7048]
[1758122703886,1.28946059,4488.1,4487.6,0.2926]
[1758122704090,0.7342,4487.7,4487.6,0.5058]
[1758122704493,0.7342,4487.7,4487.6,0.7048]
[1758122707690,0.7342,4487.7,4487.6,0.5058]
[1758122708698,0.7342,4487.7,4487.6,0.709]
[1758122709787,0.7342,4487.7,4487.4,0.3175]
[1758122709983,0.1237,4487.5,4487.4,0.3175]
[1758122710188,0.8668,4487.5,4487.4,0.5292]
[1758122710388,0.8668,4487.5,4487.4,0.507]
[1758122710792,1.4229651,4487.5,4486.8,3.2078]
[1758122711000,0.7431,4487.0,4486.9,0.507]
[1758122712800,0.4277,4487.0,4486.9,0.7102]
[1758122712994,0.2147,4487.0,4486.9,0.7102]
[1758122713498,0.5301,4487.0,4486.9,0.7102]
[1758122713894,0.2147,4487.0,4486.9,0.7102]
[1758122715693,0.5301,4487.0,4486.9,0.7102]
[1758122716093,0.7431,4487.0,4486.9,0.7102]
[1758122717305,0.2147,4487.0,4486.9,0.7102]
[1758122718996,3.2078,4487.2,4487.1,0.4149]
[1758122719198,3.2078,4487.2,4487.1,0.7102]
[1758122719892,3.9509,4487.2,4487.1,0.7102]
[1758122721100,0.7431,4487.2,4487.1,0.507]
[1758122721302,0.7431,4487.2,4486.8,0.2953]
[1758122721701,0.7431,4487.2,4487.1,0.2117]
[1758122721906,0.7431,4487.2,4487.1,0.507]
[1758122722099,0.7431,4487.2,4487.1,0.2117]
[1758122722500,0.7431,4487.2,4486.8,0.2953]
[1758122722703,0.4277,4486.9,4486.8,0.2953]
[1758122722996,0.7431,4486.9,4486.8,0.507]
[1758122724608,0.7431,4486.9,4486.7,0.2005]
[1758122727314,0.7431,4486.9,4486.7,0.1783]
[1758122727810,0.96598001,4486.9,4486.7,0.1783]
[1758122727999,0.9681,4486.8,4485.8,0.2953]
[1758122728199,0.4277,4485.8,4485.7,3.918]
[1758122728403,0.3154,4486.2,4485.7,3.918]
[1758122728602,0.3154,4487.2,4486.3,0.2953]
[1758122728801,3.7482,4487.5,4487.1,0.2953]
[1758122729002,0.2147,4487.2,4487.1,0.7102]
[1758122729403,0.4277,4487.2,4487.1,0.7102]
[1758122730708,0.7431,4487.2,4487.1,0.7102]
[1758122732215,0.7431,4487.2,4487.1,0.2953]
[1758122732407,0.7431,4487.2,4486.9,0.0222]
[1758122732712,4.0746,4487.0,4486.9,0.0222]
[1758122733114,8.29747,4487.0,4486.9,0.0222]
[1758122733410,8.85243907,4487.0,4486.3,0.1783]
[1758122733715,0.7431,4486.4,4486.3,0.4736]
[1758122734707,0.7431,4486.4,4486.3,0.6853]
[1758122736513,0.7431,4486.4,4486.3,0.507]
[1758122736819,0.7431,4486.4,4486.0,0.1255]
[1758122737116,0.7431,4486.4,4485.5,0.142]
[1758122737117,0.7431,4486.4,4485.6,0.3106]
[1758122742013,0.4112,4485.7,4485.6,0.5217]
[1758122742213,0.7246,4485.7,4485.6,0.5217]
[1758122742817,0.7246,4485.7,4485.6,0.7192]
[1758122747027,3.5212,4486.0,4485.6,0.7192]
[1758122747225,3.4173,4486.0,4485.9,0.4086]
[1758122747431,3.4173,4486.0,4485.9,0.7192]
[1758122747925,0.7246,4486.0,4485.9,0.7192]
[1758122748818,0.7246,4486.0,4485.5,0.1255]
[1758122749013,0.4112,4486.0,4485.5,0.1255]
[1758122749227,0.4112,4485.6,4485.5,0.3366]
[1758122749530,0.3134,4485.5,4485.4,0.2111]
[1758122749828,0.7246,4485.5,4485.4,0.5217]
[1758122750128,0.7246,4485.5,4485.4,0.3106]
[1758122750820,0.7246,4485.5,4485.4,0.5217]
[1758122752128,0.7246,4485.5,4485.4,0.7192]
[1758122753426,0.4112,4485.5,4485.4,0.7192]
[1758122753627,0.7246,4485.5,4485.4,0.7192]
[1758122754528,0.2095,4485.5,4485.4,0.7192]
[1758122755120,0.4112,4485.9,4485.8,0.7192]
[1758122755323,0.2095,4486.1,4486.0,0.8429]
[1758122755716,0.7246,4486.1,4486.0,0.8429]
[1758122756930,0.7246,4486.1,4486.0,0.6454]
[1758122757622,0.7246,4486.1,4486.0,0.8515]
[1758122760232,4.48792107,4486.1,4485.6,0.316]
[1758122760528,0.7063,4485.7,4485.6,0.5283]
[1758122760930,0.7063,4485.7,4485.6,0.316]
[1758122761237,0.3128,4485.6,4485.4,0.316]
[1758122761537,3.9141,4486.1,4486.0,0.5283]
[1758122761736,4.46987059,4486.1,4486.0,0.5283]
[1758122762628,0.3935,4485.6,4485.5,0.8505]
[1758122763828,3.9141,4485.6,4485.5,0.8505]
[1758122764836,3.9141,4485.6,4485.5,0.7344]
[1758122765036,3.9141,4485.6,4485.5,0.316]
[1758122765630,3.9141,4485.6,4485.5,0.5283]
[1758122766134,0.7063,4485.4,4485.3,0.97419608]
[1758122766329,0.7063,4485.4,4485.3,1.18029608]
[1758122769041,0.7063,4485.4,4485.3,0.44589608]
[1758122769336,1.26266159,4485.4,4485.3,0.44589608]
[1758122772641,1.26266159,4485.4,4485.3,0.75479608]
[1758122773840,1.26266159,4485.4,4485.3,0.95459608]
[1758122774042,1.48766159,4485.4,4485.3,0.95459608]
[1758122774641,1.48766159,4485.4,4485.3,1.16349608]
[1758122775437,1.17486159,4485.4,4485.3,1.16349608]
[1758122776341,3.2078,4485.6,4485.5,0.8373]
[1758122776544,3.6289,4485.6,4485.5,0.8373]
[1758122776937,3.8381,4485.6,4485.5,0.8373]
[1758122777138,4.1323,4485.6,4485.5,0.8373]
[1758122777643,3.9073,4485.6,4485.5,0.8373]
[1758122777844,3.8381,4485.6,4485.5,0.8373]
[1758122778245,3.6289,4485.6,4485.5,0.8373]
[1758122778547,3.2078,4485.6,4485.5,0.8373]
[1758122779246,3.4039,4485.6,4485.5,0.8373]
[1758122781942,0.1961,4485.6,4485.5,0.8373]
[1758122782543,0.225,4485.8,4485.5,0.8373]
[1758122782744,0.4211,4485.8,4485.7,0.4087]
[1758122782948,0.4211,4485.8,4485.7,0.7176]
[1758122783847,3.2078,4486.1,4485.7,0.7176]
[1758122784051,3.2078,4486.1,4486.0,0.8373]
[1758122784646,3.4039,4486.1,4486.0,0.8373]
[1758122784848,3.2078,4486.6,4486.1,0.3089]
[1758122785060,3.6131,4486.6,4486.5,0.8373]
[1758122785357,3.8381,4486.6,4486.5,0.8373]
[1758122785558,3.2078,4486.6,4486.5,0.8373]
[1758122786859,3.4039,4486.6,4486.5,0.8373]
[1758122787260,3.2078,4486.6,4486.5,0.8373]
[1758122787452,0.225,4486.9,4486.5,0.5284]
[1758122787759,0.4211,4486.9,4486.8,0.7176]
[1758122787956,0.9245,4486.9,4486.8,0.7176]
[1758122788462,0.6303,4486.9,4486.8,0.7176]
[1758122789465,3.2078,4487.1,4486.8,0.7176]
[1758122789466,3.2078,4487.1,4487.0,0.1197]
[1758122789664,3.2078,4487.1,4487.0,0.8373]
[1758122791267,0.4211,4487.4,4487.3,0.4087]
[1758122791562,3.2078,4487.6,4487.5,0.1197]
[1758122791872,3.6131,4487.6,4487.5,0.8373]
[1758122792170,3.9073,4487.6,4487.5,0.8373]
[1758122794461,3.9073,4487.6,4487.5,0.7176]
[1758122795571,3.9073,4487.6,4487.5,0.8373]
[1758122795572,3.6131,4487.6,4487.5,0.8373]
[1758122796069,3.9073,4487.6,4487.5,0.8373]
[1758122796562,3.9073,4487.6,4487.1,0.3089]
[1758122796772,0.7017,4487.1,4486.5,0.3447]
[1758122796967,3.9095,4487.1,4486.5,0.1197]
[1758122797160,0.1182,4487.0,4486.5,0.1197]
[1758122797367,0.7017,4486.6,4486.5,0.1949]
[1758122797670,0.4115,4486.6,4486.5,0.5353]
[1758122797868,0.4115,4486.6,4486.5,0.832]
[1758122798269,0.7017,4486.6,4486.5,0.832]
[1758122798666,0.4115,4486.6,4486.5,0.832]
[1758122799661,0.2014,4486.6,4486.5,0.832]
[1758122799866,0.4115,4486.7,4486.6,0.7034]
[1758122800261,0.7017,4486.7,4486.6,0.2967]
[1758122800666,0.7017,4486.7,4486.6,0.4916]
[1758122800868,0.7017,4486.7,4486.6,0.7034]
[1758122801073,0.4115,4486.7,4486.6,0.7034]
[1758122801969,0.7017,4486.7,4486.6,0.7034]
[1758122802773,0.4115,4486.7,4486.6,0.7034]
[1758122802971,0.7017,4486.7,4486.6,0.7034]
[1758122804370,0.4115,4486.7,4486.6,0.7034]
[1758122804870,0.7017,4486.7,4486.6,0.2967]
[1758122805070,0.7017,4486.7,4486.6,0.4916]
[1758122805377,0.7017,4486.7,4486.6,0.7034]
[1758122805674,3.6429,4487.1,4487.0,0.5353]
[1758122805976,3.8443,4487.1,4487.0,0.832]
[1758122806176,4.1345,4487.1,4487.0,0.832]
[1758122806676,4.1345,4487.1,4487.0,0.2967]
[1758122807481,4.1345,4487.1,4486.5,0.1286]
[1758122807770,4.1345,4487.1,4486.6,0.2967]
[1758122807976,0.7017,4486.2,4486.1,0.2967]
[1758122808272,0.2101,4485.7,4485.6,3.7928]
[1758122808474,0.2101,4485.7,4485.6,4.0895]
[1758122808978,0.2101,4485.7,4485.6,0.7034]
[1758122809282,0.7017,4485.7,4485.6,0.4916]
[1758122809578,0.4115,4485.4,4485.3,0.74259608]
[1758122809776,0.7017,4485.4,4485.3,0.93749608]
[1758122810177,0.7017,4485.4,4485.3,1.14929608]
[1758122810579,0.4115,4485.4,4485.3,1.17149608]
[1758122814076,0.7017,4485.4,4485.3,1.17149608]
[1758122814572,0.2101,4485.4,4485.3,1.17149608]
[1758122814780,3.2078,4485.8,4485.7,0.7034]
[1758122814781,3.4179,4485.8,4485.7,0.7034]
[1758122815081,3.2078,4485.8,4485.7,0.7034]
[1758122816884,3.4328,4486.3,4485.8,0.3095]
[1758122817181,4.146,4486.3,4486.2,0.5105]
[1758122817377,3.921,4486.3,4486.2,0.7109]
[1758122817585,0.1951,4486.6,4486.5,0.4337]
[1758122817880,0.6273,4486.6,4486.5,0.8351]
[1758122818081,0.9382,4486.6,4486.5,0.8351]
[1758122818479,0.7132,4486.6,4486.5,0.8351]
[1758122819485,0.1951,4486.6,4486.5,0.8351]
[1758122819977,3.2078,4486.8,4486.5,0.5256]
[1758122820181,3.4029,4486.8,4486.7,0.4014]
[1758122820380,3.4029,4486.8,4486.7,0.7109]
[1758122820683,3.2078,4486.8,4486.7,0.7109]
[1758122821982,3.7437,4487.4,4486.8,0.3095]
[1758122822180,4.146,4487.4,4487.3,0.5105]
[1758122822676,3.8351,4487.4,4487.3,0.7109]
[1758122822878,4.146,4487.4,4487.3,0.7109]
[1758122823178,4.146,4487.4,4487.3,0.3095]
[1758122823373,4.146,4487.4,4487.1,0.0222]
[1758122823573,0.22286,4487.3,4487.1,0.0222]
[1758122823879,4.146,4487.4,4487.1,0.0222]
[1758122823880,0.9382,4487.2,4487.1,0.0222]
[1758122824675,0.9382,4487.2,4486.5,0.1783]
[1758122824875,0.7132,4486.6,4486.5,0.1783]
[1758122825471,0.7132,4486.6,4486.1,0.3095]
[1758122825783,0.1951,4486.2,4486.1,0.4014]
[1758122825983,0.3109,4486.5,4486.1,0.7109]
[1758122826184,0.5181,4486.3,4486.2,0.5105]
[1758122826387,0.7132,4486.3,4486.2,0.3095]
[1758122827086,0.7132,4486.3,4486.2,0.5105]
[1758122830990,3.921,4486.3,4486.0,0.4902]
[1758122831185,0.7185,4486.1,4486.0,0.4902]
[1758122831491,0.7185,4486.1,4486.0,0.1783]
[1758122831686,0.7185,4486.1,4485.6,0.3119]
[1758122831984,3.2078,4486.3,4485.6,0.3119]
[1758122831985,3.9263,4485.7,4485.6,0.3119]
[1758122832286,0.7185,4485.6,4485.5,0.3119]
[1758122832485,0.7185,4485.6,4485.5,0.5234]
[1758122832691,0.7185,4485.6,4485.5,0.6439]
[1758122832879,0.1175,4486.5,4485.5,0.6439]
[1758122832880,0.9435,4486.4,4486.3,0.4097]
[1758122833084,0.9435,4486.4,4486.3,0.7216]
[1758122836090,0.7185,4486.4,4486.3,0.7216]
[1758122836291,0.9435,4486.4,4486.3,0.7216]
[1758122837189,0.4105,4486.4,4486.3,0.7216]
[1758122837385,0.225,4486.4,4486.3,0.7216]
[1758122837584,0.4216,4486.4,4486.3,0.7216]
[1758122838190,3.2078,4486.6,4486.5,0.1205]
[1758122838388,3.2078,4486.6,4486.5,0.8421]
[1758122838896,3.4044,4486.6,4486.5,0.8421]
[1758122840989,3.6183,4486.6,4486.5,0.8421]
[1758122841498,3.4044,4486.6,4486.5,0.8421]
[1758122842993,3.6183,4486.6,4486.5,0.8421]
[1758122843189,3.9263,4486.6,4486.5,0.8421]
[1758122847091,3.9263,4486.6,4486.1,0.3119]
[1758122847292,0.7185,4486.1,4485.5,0.1205]
[1758122847493,0.7185,4486.1,4485.6,0.3119]
[1758122847796,0.7185,4486.1,4486.0,0.5234]
[1758122850601,0.225,4486.4,4486.1,0.3119]
[1758122850800,0.9435,4486.4,4486.3,0.5234]
[1758122852900,0.7185,4486.4,4486.3,0.5234]
[1758122853703,0.7185,4486.4,4486.1,0.1783]
[1758122854110,0.4105,4486.4,4486.1,0.1783]
[1758122854404,0.7185,4486.3,4486.2,0.3119]
[1758122854603,0.7185,4486.3,4486.2,0.5234]
[1758122854901,0.7185,4486.3,4486.2,0.7216]
[1758122856006,0.4105,4486.3,4486.2,0.7216]
[1758122856602,0.1966,4486.3,4486.2,0.7216]
[1758122857707,0.7218,4486.3,4486.1,0.1783]
[1758122858403,0.7218,4486.3,4486.1,0.4952]
[1758122858606,0.7318,4486.2,4486.1,0.4952]
[1758122859307,0.7318,4486.2,4486.1,0.1783]
[1758122859909,3.625,4486.2,4485.7,0.0222]
[1758122860109,0.4172,4485.9,4485.8,0.516]
[1758122860302,0.7318,4485.9,4485.7,0.0222]
[1758122860507,0.3146,4485.8,4485.7,0.3391]
[1758122860812,0.7318,4485.8,4485.7,0.7521]
[1758122861202,0.4172,4485.8,4485.7,0.7521]
[1758122862409,0.7318,4485.8,4485.7,0.0222]
[1758122862906,1.28930401,4485.8,4485.7,0.0222]
[1758122863909,1.28930401,4485.8,4485.5,0.1783]
[1758122864113,3.9396,4485.6,4485.5,0.1783]
[1758122864313,4.49710401,4485.6,4485.5,0.1783]
[1758122866118,4.18250401,4485.6,4485.3,0.44589608]
[1758122866409,0.7318,4485.4,4485.3,0.44589608]
[1758122866614,0.9568,4485.4,4485.3,0.44589608]
[1758122867313,0.9568,4485.4,4485.3,0.76279608]
[1758122869120,0.9568,4485.4,4485.3,0.44589608]
[1758122870507,0.9568,4485.4,4485.3,0.76279608]
[1758122871118,0.9568,4485.4,4485.3,0.96189608]
[1758122875711,0.4316,4485.4,4485.3,1.17579608]
[1758122875919,3.2078,4485.6,4485.5,0.8498]
[1758122876117,3.4328,4485.6,4485.5,0.8498]
[1758122876319,3.6394,4485.6,4485.5,0.8498]
[1758122876816,4.1646,4485.6,4485.5,0.516]
[1758122879515,3.9396,4485.6,4485.5,0.8396]
[1758122879721,3.4328,4485.6,4485.5,0.8396]
[1758122880017,3.6322,4485.6,4485.5,0.8396]
[1758122880414,4.164,4485.6,4485.5,0.8396]
[1758122880619,4.164,4485.6,4485.5,0.3169]
[1758122881321,3.8434,4485.6,4485.3,0.74929608]
[1758122881523,0.7312,4485.4,4485.3,0.74929608]
[1758122881717,0.9562,4485.4,4485.3,0.74929608]
[1758122883827,0.9562,4485.4,4485.3,0.44589608]
[1758122884425,0.9562,4485.4,4485.3,0.74929608]
[1758122885028,0.9562,4485.4,4485.3,1.15439608]
[1758122886627,0.9562,4485.4,4485.3,0.95139608]
[1758122887626,0.9562,4485.4,4485.3,1.15439608]
[1758122889324,1.51334259,4485.4,4485.3,1.15439608]
[1758122890534,1.19274259,4485.4,4485.3,1.15439608]
[1758122891337,1.50954259,4485.4,4485.3,1.15439608]
[1758122892136,1.19274259,4485.4,4485.3,1.15439608]
[1758122892438,1.50954259,4485.4,4485.3,1.15439608]
[1758122892834,1.50954259,4485.4,4485.3,0.44589608]
[1758122895346,1.19274259,4485.4,4485.3,1.18179608]
[1758122895540,0.78214259,4485.4,4485.3,1.18179608]
[1758122895741,0.97614259,4485.4,4485.3,1.18179608]
[1758122896243,1.19104259,4485.4,4485.3,1.18179608]
[1758122897142,1.50784259,4485.4,4485.3,1.18179608]
[1758122897555,1.50784259,4485.4,4485.3,0.44589608]
[1758122898351,1.50784259,4485.4,4485.3,0.97579608]
[1758122899659,1.50784259,4485.4,4485.3,0.76319608]
[1758122900450,1.50784259,4485.4,4485.3,0.97579608]
[1758122900649,1.50784259,4485.4,4485.3,1.18179608]
[1758122901156,1.19104259,4485.4,4485.3,1.18179608]
[1758122901346,0.97614259,4485.4,4485.3,1.18179608]
[1758122904054,0.96604259,4485.4,4485.3,1.18179608]
[1758122904251,1.50784259,4485.4,4485.3,1.18179608]
[1758122905357,1.19104259,4485.4,4485.3,1.18179608]
[1758122907355,1.50784259,4485.4,4485.3,1.18179608]
[1758122908148,1.50784259,4485.4,4485.3,0.44589608]
[1758122908553,1.50784259,4485.4,4485.3,0.76319608]
[1758122910059,1.50784259,4485.4,4485.3,0.97579608]
[1758122910458,1.50784259,4485.4,4485.3,1.18179608]
[1758122911563,1.19104259,4485.4,4485.3,1.18179608]
[1758122912652,1.50784259,4485.4,4485.3,1.18179608]
[1758122913861,1.19104259,4485.4,4485.3,1.18179608]
[1758122914163,0.75114259,4485.4,4485.3,1.18179608]
[1758122914363,0.55714259,4485.4,4485.3,1.18179608]
[1758122914662,0.78214259,4485.4,4485.3,1.18179608]
[1758122915565,0.97614259,4485.4,4485.3,1.18179608]
[1758122916062,1.50784259,4485.4,4485.3,1.18179608]
[1758122916256,1.50784259,4485.4,4485.3,0.97579608]
[1758122918561,1.50784259,4485.4,4485.3,0.44589608]
[1758122919366,1.50784259,4485.4,4485.3,0.75459608]
[1758122919660,1.19104259,4485.4,4485.3,1.18249608]
[1758122919867,0.97614259,4485.4,4485.3,1.18249608]
[1758122920065,1.17034259,4485.4,4485.3,1.18249608]
[1758122920366,1.48104259,4485.4,4485.3,1.18249608]
[1758122920668,1.17034259,4485.4,4485.3,1.18249608]
[1758122922261,1.48104259,4485.4,4485.3,1.18249608]
[1758122923063,1.17034259,4485.4,4485.3,1.18249608]
[1758122925469,0.97614259,4485.4,4485.3,1.18249608]
[1758122925769,0.75114259,4485.4,4485.3,1.18249608]
[1758122925970,0.97614259,4485.4,4485.3,1.18249608]
[1758122927172,0.75114259,4485.4,4485.3,1.18249608]
[1758122927361,0.97614259,4485.4,4485.3,1.18249608]
[1758122927763,0.75114259,4485.4,4485.3,1.18249608]
[1758122927966,0.78214259,4485.4,4485.3,1.18249608]
[1758122928263,0.55714259,4485.4,4485.3,1.18249608]
[1758122928574,0.78214259,4485.4,4485.3,1.18249608]
[1758122929067,0.99114259,4485.4,4485.3,1.18249608]
[1758122930567,1.49604259,4485.4,4485.3,1.18249608]
[1758122930973,1.49604259,4485.4,4485.3,0.75459608]
[1758122933473,1.49604259,4485.4,4485.3,0.96769608]
[1758122934374,1.49604259,4485.4,4485.3,1.18249608]
[1758122934375,1.18534259,4485.4,4485.3,1.18249608]
[1758122934575,1.49604259,4485.4,4485.3,1.18249608]
[1758122935267,0.99114259,4485.4,4485.3,1.18249608]
[1758122935676,0.76614259,4485.4,4485.3,1.18249608]
[1758122935872,0.99088958,4485.4,4485.3,1.18249608]
[1758122938277,1.18998958,4485.4,4485.3,1.18249608]
[1758122938473,1.49188958,4485.4,4485.3,1.18249608]
[1758122939384,1.26688958,4485.4,4485.3,1.18249608]
[1758122939678,1.49188958,4485.4,4485.3,1.18249608]
[1758122942283,0.99088958,4485.4,4485.3,1.18249608]
[1758122942584,0.78188958,4485.4,4485.3,1.18249608]
[1758122942885,0.55688958,4485.4,4485.3,1.18249608]
[1758122943073,0.97848958,4485.4,4485.3,1.18249608]
[1758122943277,0.75348958,4485.4,4485.3,1.18249608]
[1758122943471,0.97848958,4485.4,4485.3,1.18249608]
[1758122944283,1.47948958,4485.4,4485.3,1.18249608]
[1758122944574,1.17758958,4485.4,4485.3,1.18249608]
[1758122945182,0.78188958,4485.4,4485.3,1.18249608]
[1758122946189,1.47948958,4485.4,4485.3,1.18249608]